fUST/lending_fUST_20240514
["ID","MTS","AMOUNT","RATE_DAILY","PERIOD"]
[326976543,1715670370944,447.49704798,9.999e-05,2]
[326976544,1715670431129,250.0,0.00016794,2]
[326976545,1715670478199,1495.36520031,9.999e-05,2]
[326976546,1715670516658,292.53005039,9.999e-05,2]
[326976581,1715670632447,-2398.82924555,0.0001702,2]
[326976595,1715670632456,-941.81038936,0.00017044,2]
[326976598,1715670632553,-727.837888,0.00017046,2]
[326976599,1715670632562,-624.78349381,0.00017914,2]
[326976600,1715670632571,-255.55008112,0.00018011,2]
[326976601,1715670632580,-237.55587717,0.00018015,2]
[326976602,1715670632589,-1596.54233102,0.00018015,2]
[326976603,1715670632598,-155.4320739,0.0001811,2]
[326976604,1715670632606,-59359.862772,0.00018111,2]
[326976605,1715670632615,-294.55885098,0.00018112,2]
[326976606,1715670632624,-189.01878268,0.00018112,2]
[326976607,1715670632633,-670.92966783,0.00018112,2]
[326976608,1715670632642,-329.85737843,0.00018112,2]
[326976609,1715670632651,-968.83171594,0.00018112,2]
[326976610,1715670632660,-702.23731053,0.00018112,2]
[326976611,1715670632669,-1041.39295305,0.00018112,2]
[326976612,1715670632678,-448.13281514,0.00018112,2]
[326976613,1715670632689,-327.5649401,0.00018112,2]
[326976614,1715670632698,-615.22935433,0.00018112,2]
[326976615,1715670632707,-293.63671143,0.00018112,2]
[326976616,1715670632716,-197.12508876,0.00018113,2]
[326976617,1715670632725,-639.65599245,0.00018113,2]
[326976618,1715670632734,-22575.27636967,0.00018115,2]
[326976619,1715670632743,-237.55587714,0.00018486,2]
[326976620,1715670632752,-671.76,0.00018786,3]
[326976621,1715670632762,-386.07239046,0.000189,2]
[326976622,1715670632771,-237.55587714,0.00018958,2]
[326976623,1715670632780,-335.88,0.00019168,3]
[326976624,1715670632789,-167.94,0.00019168,3]
[326976625,1715670632800,-503.82,0.00019168,3]
[326976626,1715670632810,-715.9,0.00019168,3]
[326976627,1715670632819,-521.32763563,0.00019178,2]
[326976628,1715670632828,-500.0,0.00019178,2]
[326976629,1715670632837,-500.0,0.00019178,2]
[326976630,1715670632847,-500.0,0.00019178,2]
[326976631,1715670632856,-500.0,0.00019178,2]
[326976632,1715670632865,-173.7662377,0.00019178,2]
[326976633,1715670632874,-500.0,0.00019178,2]
[326976634,1715670632883,-500.0,0.00019178,2]
[326976635,1715670632891,-500.0,0.00019178,2]
[326976636,1715670632900,-500.0,0.00019178,2]
[326976637,1715670632909,-500.0,0.00019178,2]
[326976638,1715670632918,-500.0,0.00019178,2]
[326976639,1715670632927,-500.0,0.00019178,2]
[326976640,1715670632938,-500.0,0.00019178,2]
[326976641,1715670632947,-500.0,0.00019178,2]
[326976642,1715670632956,-500.0,0.00019178,2]
[326976643,1715670632965,-500.0,0.00019178,2]
[326976644,1715670632974,-500.0,0.00019178,2]
[326976645,1715670632983,-500.0,0.00019178,2]
[326976646,1715670632993,-500.0,0.00019178,2]
[326976647,1715670633002,-500.0,0.00019178,2]
[326976648,1715670633011,-500.0,0.00019178,2]
[326976649,1715670633021,-500.0,0.00019178,2]
[326976650,1715670633030,-500.0,0.00019178,2]
[326976651,1715670633039,-500.0,0.00019178,2]
[326976652,1715670633048,-500.0,0.00019178,2]
[326976653,1715670633058,-500.0,0.00019178,2]
[326976654,1715670633067,-500.0,0.00019178,2]
[326976655,1715670633076,-500.0,0.00019178,2]
[326976656,1715670633085,-500.0,0.00019178,2]
[326976657,1715670633095,-500.0,0.00019178,2]
[326976658,1715670633104,-500.0,0.00019178,2]
[326976659,1715670633113,-500.0,0.00019178,2]
[326976660,1715670633122,-500.0,0.00019178,2]
[326976661,1715670633132,-500.0,0.00019178,2]
[326976662,1715670633141,-500.0,0.00019178,2]
[326976663,1715670633152,-500.0,0.00019178,2]
[326976664,1715670633163,-500.0,0.00019178,2]
[326976665,1715670633172,-500.0,0.00019178,2]
[326976666,1715670633181,-500.0,0.00019178,2]
[326976667,1715670633191,-500.0,0.00019178,2]
[326976668,1715670633200,-500.0,0.00019178,2]
[326976669,1715670633215,-500.0,0.00019178,2]
[326976670,1715670633225,-500.0,0.00019178,2]
[326976671,1715670633234,-500.0,0.00019178,2]
[326976672,1715670633244,-500.0,0.00019178,2]
[326976673,1715670633255,-254.25639712,0.00019178,2]
[326976674,1715670633264,-500.0,0.00019178,2]
[326976675,1715670633273,-500.0,0.00019178,2]
[326976676,1715670633283,-500.0,0.00019178,2]
[326976677,1715670633293,-500.0,0.00019178,2]
[326976678,1715670633303,-500.0,0.00019178,2]
[326976679,1715670633312,-500.0,0.00019178,2]
[326976680,1715670633321,-500.0,0.00019178,2]
[326976681,1715670633330,-500.0,0.00019178,2]
[326976682,1715670633340,-500.0,0.00019178,2]
[326976683,1715670633348,-500.0,0.00019178,2]
[326976684,1715670633358,-500.0,0.00019178,2]
[326976685,1715670633367,-500.0,0.00019178,2]
[326976686,1715670633376,-500.0,0.00019178,2]
[326976687,1715670633385,-500.0,0.00019178,2]
[326976688,1715670633394,-500.0,0.00019178,2]
[326976689,1715670633403,-500.0,0.00019178,2]
[326976690,1715670633412,-500.0,0.00019178,2]
[326976691,1715670633421,-500.0,0.00019178,2]
[326976692,1715670633430,-500.0,0.00019178,2]
[326976693,1715670633441,-500.0,0.00019178,2]
[326976694,1715670633450,-500.0,0.00019178,2]
[326976695,1715670633459,-500.0,0.00019178,2]
[326976696,1715670633468,-500.0,0.00019178,2]
[326976697,1715670633477,-500.0,0.00019178,2]
[326976698,1715670633486,-450.0,0.00019178,2]
[326976699,1715670633495,-500.0,0.00019178,2]
[326976700,1715670633504,-500.0,0.00019178,2]
[326976701,1715670633513,-500.0,0.00019178,2]
[326976702,1715670633522,-500.0,0.00019178,2]
[326976703,1715670633530,-500.0,0.00019178,2]
[326976704,1715670633539,-500.0,0.00019178,2]
[326976705,1715670633548,-500.0,0.00019178,2]
[326976706,1715670633557,-500.0,0.00019178,2]
[326976707,1715670633566,-172.919791,0.00019178,2]
[326976708,1715670633575,-237.55587714,0.00019429,2]
[326976709,1715670633584,-980.29334132,0.00019579,2]
[326976710,1715670633594,-416.66666666,0.00019591,2]
[326976711,1715670633603,-237.55587714,0.000199,2]
[326976712,1715670633612,-1398.89786693,0.00019994,2]
[326976713,1715670633621,-318.95682534,0.00019994,2]
[326976714,1715670633630,-588.4261547,0.00019994,2]
[326976715,1715670633640,-1404.79664778,0.00019994,2]
[326976716,1715670633649,-155.14659779,0.00019994,2]
[326976717,1715670633659,-396.94412145,0.00019994,2]
[326976718,1715670633668,-270.04523682,0.00019994,2]
[326976719,1715670633677,-155.52103477,0.00019995,2]
[326976720,1715670633687,-7884.1916548,0.00019995,2]
[326976721,1715670633696,-1894.91130728,0.00019995,2]
[326976722,1715670633706,-625.44657219,0.00019997,2]
[326976723,1715670633715,-2043.08679505,0.00019997,2]
[326976724,1715670633725,-154.85211438,0.00019997,2]
[326976725,1715670633734,-155.01195926,0.00019997,2]
[326976726,1715670633743,-1360.68791567,0.00019997,2]
[326976727,1715670633753,-236.13620026,0.00019997,2]
[326976728,1715670633762,-155.60650587,0.00019997,2]
[326976729,1715670633771,-230.4682107,0.00019997,2]
[326976730,1715670633781,-172.16683923,0.00019997,2]
[326976731,1715670633790,-718.70282773,0.00019997,2]
[326976732,1715670633799,-155.78423505,0.00019997,2]
[326976733,1715670633808,-155.11335588,0.00019997,2]
[326976734,1715670633817,-155.07473619,0.00019997,2]
[326976735,1715670633827,-823.11060106,0.00019997,2]
[326976736,1715670633836,-356.78679677,0.00019997,2]
[326976737,1715670633845,-267.47737853,0.00019997,2]
[326976738,1715670633855,-235.3622469,0.00019997,2]
[326976739,1715670633864,-301.65111372,0.00019997,2]
[326976740,1715670633873,-191.3038432,0.00019997,2]
[326976741,1715670633883,-749.69805327,0.00019997,2]
[326976742,1715670633893,-716.42883485,0.00019997,2]
[326976743,1715670633904,-1690.82250562,0.00019997,2]
[326976744,1715670633914,-286.88843354,0.00019997,2]
[326976745,1715670633924,-470.75279812,0.00019997,2]
[326976746,1715670633933,-493.49176384,0.00019997,2]
[326976747,1715670633944,-156.15796356,0.00019997,2]
[326976748,1715670633954,-250.6122576,0.00019997,2]
[326976749,1715670633964,-269.52196399,0.00019997,2]
[326976750,1715670633973,-196.75561218,0.00019997,2]
[326976751,1715670633983,-8602.21054839,0.00019998,2]
[326976752,1715670633993,-12271.39826701,0.0002,2]
[326976753,1715670634003,-154.79876161,0.0002,2]
[326976754,1715670634012,-16274.33295857,0.0002,2]
[326976755,1715670634022,-30189.85778992,0.0002,2]
[326976756,1715670634032,-151.0,0.0002,2]
[326976757,1715670634042,-151.0,0.0002,2]
[326976758,1715670634051,-902.281355,0.0002,2]
[326976759,1715670634061,-902.281355,0.0002,2]
[326976760,1715670634070,-151.0,0.0002,2]
[326976761,1715670634079,-151.252078,0.0002,2]
[326976762,1715670634089,-181.55166,0.0002,2]
[326976763,1715670634098,-181.55166,0.0002,2]
[326976764,1715670634108,-1343.52,0.00020156,3]
[326976765,1715670634117,-671.76,0.00020538,3]
[326976766,1715670634126,-335.88,0.00020538,3]
[326976767,1715670634135,-261.87437663,0.00020905,2]
[326976768,1715670634145,-741.6963637,0.00020905,2]
[326976769,1715670634154,-155.23227126,0.00020905,4]
[326976770,1715670634163,-154.92646823,0.00020905,2]
[326976771,1715670634173,-2492.6860996,0.00020905,2]
[326976772,1715670634184,-512.62326743,0.00020906,2]
[326976773,1715670634195,-242.48328594,0.00020907,2]
[326976774,1715670634205,-157.22786827,0.0002091,2]
[326976775,1715670634220,-156.11080893,0.0002091,2]
[326976776,1715670634229,-160.67035801,0.0002091,2]
[326976777,1715670634238,-199.16223184,0.0002091,2]
[326976778,1715670634315,-187.2376766,0.0002091,2]
[326976779,1715670634324,-307.11436343,0.0002091,2]
[326976780,1715670634334,-187.95819768,0.0002091,2]
[326976781,1715670634343,-11037.63774094,0.0002091,2]
[326976782,1715670634352,-154.91423047,0.0002091,2]
[326976783,1715670634362,-151.0,0.0002091,2]
[326976784,1715670634371,-225.892135,0.0002091,2]
[326976785,1715670634380,-151.0,0.0002091,2]
[326976786,1715670634389,-151.0,0.0002091,2]
[326976787,1715670634398,-902.281355,0.0002091,2]
[326976788,1715670634407,-902.281355,0.0002091,2]
[326976789,1715670634416,-151.0,0.0002091,2]
[326976790,1715670634425,-151.0,0.0002091,2]
[326976791,1715670634434,-227.355618,0.0002091,2]
[326976792,1715670634444,-227.355618,0.0002091,2]
[326976793,1715670634453,-151.0,0.0002091,2]
[326976794,1715670634462,-151.0,0.0002091,2]
[326976795,1715670634471,-151.0,0.0002091,2]
[326976796,1715670634480,-351.04623,0.0002091,2]
[326976797,1715670634489,-351.04623,0.0002091,2]
[326976798,1715670634498,-151.0,0.0002091,2]
[326976799,1715670634508,-151.0,0.0002091,2]
[326976800,1715670634517,-319.297825,0.0002091,2]
[326976801,1715670634526,-319.297825,0.0002091,2]
[326976802,1715670634536,-151.0,0.0002091,2]
[326976803,1715670634546,-151.0,0.0002091,2]
[326976804,1715670634556,-151.0,0.0002091,2]
[326976805,1715670634565,-151.0,0.0002091,2]
[326976806,1715670634575,-151.0,0.0002091,2]
[326976807,1715670634585,-788.512884,0.0002091,2]
[326976808,1715670634595,-2240.09255,0.0002091,2]
[326976809,1715670634606,-1668.034838,0.0002091,2]
[326976810,1715670634617,-788.512884,0.0002091,2]
[326976811,1715670634626,-2240.09255,0.0002091,2]
[326976812,1715670634636,-337.182548,0.0002091,2]
[326976813,1715670634645,-1668.034838,0.0002091,2]
[326976814,1715670634656,-151.0,0.0002091,2]
[326976815,1715670634667,-337.182548,0.0002091,2]
[326976816,1715670634675,-151.0,0.0002091,2]
[326976817,1715670634684,-1868.77064,0.0002091,2]
[326976818,1715670634694,-1868.77064,0.0002091,2]
[326976819,1715670634703,-244.001732,0.0002091,2]
[326976820,1715670634714,-244.001732,0.0002091,2]
[326976821,1715670634723,-239.723608,0.0002091,2]
[326976822,1715670634732,-1223.385485,0.0002091,2]
[326976823,1715670634742,-1223.385485,0.0002091,2]
[326976824,1715670634751,-165.99295431,0.00020911,2]
[326976825,1715670634760,-155.78035626,0.00020911,2]
[326976826,1715670634769,-155.45586375,0.00020911,2]
[326976827,1715670634778,-156.79450962,0.00020911,2]
[326976828,1715670634787,-300.916812,0.00020911,2]
[326976829,1715670634797,-214.52507697,0.00020911,2]
[326976830,1715670634806,-259.84586818,0.00020911,2]
[326976831,1715670634815,-180.64180702,0.00020911,2]
[326976832,1715670634824,-187.64513291,0.00020911,2]
[326976833,1715670634833,-297.26700897,0.00020912,2]
[326976834,1715670634843,-155.27852376,0.00020912,2]
[326976835,1715670634852,-507.573,0.00021609,2]
[326976836,1715670634861,-225.0,0.00021918,2]
[326976837,1715670634870,-531.175051,0.00021918,2]
[326976838,1715670634879,-531.175051,0.00021918,2]
[326976839,1715670634889,-166.666666,0.00021918,2]
[326976840,1715670634898,-160.11372829,0.00022,2]
[326976841,1715670634908,-151.0,0.00022,2]
[326976842,1715670634916,-181.55166,0.00022,2]
[326976843,1715670634926,-181.55166,0.00022,2]
[326976844,1715670634935,-151.0,0.00022,2]
[326976845,1715670634946,-151.0,0.00022,2]
[326976846,1715670634956,-178.9989,0.00022,2]
[326976847,1715670634965,-178.9989,0.00022,2]
[326976848,1715670634975,-702.892299,0.00022,2]
[326976849,1715670634984,-702.892299,0.00022,2]
[326976850,1715670634993,-166.666666,0.00022431,2]
[326976851,1715670635002,-166.666666,0.00022944,2]
[326976852,1715670635012,-166.666666,0.00023456,2]
[326976853,1715670635022,-164.988648,0.00023562,2]
[326976854,1715670635031,-165.499447,0.00023562,2]
[326976855,1715670635041,-165.562968,0.00023562,2]
[326976856,1715670635051,-386.07239046,0.000239,2]
[326976857,1715670635060,-166.666666,0.00023969,2]
[326976858,1715670635070,-166.666666,0.00024482,2]
[326976859,1715670635080,-501.22716093,0.00024658,2]
[326976860,1715670635089,-1201.959778,0.00024658,2]
[326976861,1715670635098,-1201.959778,0.00024658,2]
[326976862,1715670635108,-628.36662148,0.00024919,2]
[326976863,1715670635118,-190.26090119,0.00025,2]
[326976864,1715670635128,-402.09699242,0.00025,2]
[326976865,1715670635138,-209.37753587,0.00025,2]
[326976866,1715670635147,-353.61769236,0.00025,2]
[326976867,1715670635157,-727.837888,0.0002557,2]
[326976868,1715670635166,-589.0,0.000261,2]
[326976869,1715670635176,-620.41833107,0.00026165,2]
[326976870,1715670635186,-187.86458079,0.00027,2]
[326976871,1715670635197,-569.28455557,0.0002739,10]
[326976872,1715670635212,-189.2523723,0.00027397,2]
[326976873,1715670635224,-223.49914406,0.00028,2]
[326976874,1715670635233,-386.07239046,0.000289,2]
[326976875,1715670635243,-155.14085268,0.0003,4]
[326976876,1715670635254,-155.06310499,0.0003,4]
[326976877,1715670635264,-448.15988121,0.00032,4]
[326976878,1715670635273,-467.5754666,0.00034,4]
[326976879,1715670635282,-154.79876161,0.00035,4]
[326976880,1715670635293,-5954.78656953,0.00035,4]
[326976881,1715670635303,-151.0,0.00035,2]
[326976882,1715670635312,-1331.46927635,0.00035,7]
[326976883,1715670635321,-1331.60225041,0.00035,7]
[326976884,1715670635331,-936.10037176,0.000356,30]
[326976885,1715670635340,-1880.43,0.00035616,3]
[326976886,1715670635349,-1567.02,0.00035616,3]
[326976887,1715670635358,-1305.85,0.00035616,3]
[326976888,1715670635367,-165.499447,0.00036164,2]
[326976889,1715670635377,-1331.46927635,0.000371,7]
[326976890,1715670635386,-1331.60225041,0.000371,7]
[326976891,1715670635396,-151.0,0.000392,2]
[326976892,1715670635406,-151.0,0.000392,2]
[326976893,1715670635415,-902.281355,0.000392,2]
[326976894,1715670635424,-902.281355,0.000392,2]
[326976895,1715670635433,-1452.51193783,0.000392,11]
[326976896,1715670635443,-151.0,0.000392,2]
[326976897,1715670635453,-181.55166,0.000392,2]
[326976898,1715670635462,-181.55166,0.000392,2]
[326976899,1715670635471,-159.343491,0.000392,2]
[326976900,1715670635481,-151.0,0.000392,2]
[326976901,1715670635491,-227.355618,0.000392,2]
[326976902,1715670635500,-227.355618,0.000392,2]
[326976903,1715670635510,-151.0,0.000392,2]
[326976904,1715670635519,-151.0,0.000392,2]
[326976905,1715670635529,-151.702634,0.000392,2]
[326976906,1715670635538,-351.04623,0.000392,2]
[326976907,1715670635548,-351.04623,0.000392,2]
[326976908,1715670635557,-151.0,0.000392,2]
[326976909,1715670635566,-288.48448,0.000392,2]
[326976910,1715670635576,-319.297825,0.000392,2]
[326976911,1715670635585,-319.297825,0.000392,2]
[326976912,1715670635595,-151.0,0.000392,2]
[326976913,1715670635604,-261.395112,0.000392,2]
[326976914,1715670635613,-151.0,0.000392,2]
[326976915,1715670635622,-151.0,0.000392,2]
[326976916,1715670635632,-151.0,0.000392,2]
[326976917,1715670635641,-1452.65700044,0.000392,11]
[326976918,1715670635650,-788.512884,0.000392,2]
[326976919,1715670635660,-2240.09255,0.000392,2]
[326976920,1715670635669,-1668.034838,0.000392,2]
[326976921,1715670635678,-788.512884,0.000392,2]
[326976922,1715670635687,-2240.09255,0.000392,2]
[326976923,1715670635697,-1668.034838,0.000392,2]
[326976924,1715670635706,-337.182548,0.000392,2]
[326976925,1715670635715,-250.698681,0.000392,2]
[326976926,1715670635724,-337.182548,0.000392,2]
[326976927,1715670635734,-151.0,0.000392,2]
[326976928,1715670635743,-1868.77064,0.000392,2]
[326976929,1715670635752,-1868.77064,0.000392,2]
[326976930,1715670635761,-244.001732,0.000392,2]
[326976931,1715670635772,-244.001732,0.000392,2]
[326976932,1715670635781,-531.175051,0.000392,2]
[326976933,1715670635790,-531.175051,0.000392,2]
[326976934,1715670635800,-1223.385485,0.000392,2]
[326976935,1715670635809,-1223.385485,0.000392,2]
[326976936,1715670635819,-1201.959778,0.000392,2]
[326976937,1715670635828,-1201.959778,0.000392,2]
[326976938,1715670635838,-151.0,0.000392,2]
[326976939,1715670635847,-151.0,0.000392,2]
[326976940,1715670635856,-178.9989,0.000392,2]
[326976941,1715670635866,-178.9989,0.000392,2]
[326976942,1715670635875,-702.892299,0.000392,2]
[326976943,1715670635950,-702.892299,0.000392,2]
[326976944,1715670635961,-500.0,0.00039726,15]
[326976945,1715670635971,-617.85106801,0.00039726,15]
[326976946,1715670635980,-500.0,0.00039726,15]
[326976947,1715670635990,-500.0,0.00039726,15]
[326976948,1715670635999,-500.0,0.00039726,15]
[326976949,1715670636009,-500.0,0.00039726,15]
[326976950,1715670636019,-500.0,0.00039726,15]
[326976951,1715670636028,-534.0,0.0004,2]
[326976952,1715670636038,-1689.23080311,0.0004,4]
[326976953,1715670636048,-1898.53683844,0.0004,4]
[326976954,1715670636057,-1452.51193783,0.000413,11]
[326976955,1715670636066,-1452.65700044,0.000413,11]
[326976956,1715670636076,-150.0,0.00041524,2]
[326976957,1715670636085,-150.0,0.00041792,2]
[326976958,1715670636094,-150.0,0.00041958,2]
[326976959,1715670636103,-150.0,0.00042206,2]
[326976960,1715670636112,-165.562968,0.00042466,2]
[326976961,1715670636122,-150.0,0.00042595,2]
[326976962,1715670636131,-150.0,0.00042942,2]
[326976963,1715670636140,-151.0,0.00043,7]
[326976964,1715670636150,-1000.0,0.00043,43]
[326976965,1715670636159,-150.0,0.00043128,2]
[326976966,1715670636168,-151.0,0.000433,7]
[326976967,1715670636177,-151.0,0.000433,7]
[326976968,1715670636186,-151.0,0.000433,7]
[326976969,1715670636196,-902.281355,0.000433,7]
[326976970,1715670636206,-902.281355,0.000433,7]
[326976971,1715670636219,-151.0,0.000433,7]
[326976972,1715670636228,-181.55166,0.000433,7]
[326976973,1715670636237,-181.55166,0.000433,7]
[326976974,1715670636247,-151.0,0.000433,7]
[326976975,1715670636256,-227.355618,0.000433,7]
[326976976,1715670636266,-227.355618,0.000433,7]
[326976977,1715670636275,-151.0,0.000433,7]
[326976978,1715670636284,-151.0,0.000433,7]
[326976979,1715670636295,-351.04623,0.000433,7]
[326976980,1715670636304,-351.04623,0.000433,7]
[326976981,1715670636314,-151.0,0.000433,7]
[326976982,1715670636323,-319.297825,0.000433,7]
[326976983,1715670636332,-319.297825,0.000433,7]
[326976984,1715670636342,-151.0,0.000433,7]
[326976985,1715670636351,-151.0,0.000433,7]
[326976986,1715670636360,-151.0,0.000433,7]
[326976987,1715670636370,-276.509257,0.000433,7]
[326976988,1715670636379,-788.512884,0.000433,7]
[326976989,1715670636388,-2240.09255,0.000433,7]
[326976990,1715670636398,-1668.034838,0.000433,7]
[326976991,1715670636407,-788.512884,0.000433,7]
[326976992,1715670636416,-2240.09255,0.000433,7]
[326976993,1715670636426,-1668.034838,0.000433,7]
[326976994,1715670636435,-337.182548,0.000433,7]
[326976995,1715670636445,-337.182548,0.000433,7]
[326976996,1715670636454,-1868.77064,0.000433,7]
[326976997,1715670636464,-151.0,0.000433,7]
[326976998,1715670636473,-1868.77064,0.000433,7]
[326976999,1715670636482,-244.001732,0.000433,7]
[326977000,1715670636492,-244.001732,0.000433,7]
[326977001,1715670636501,-531.175051,0.000433,7]
[326977002,1715670636510,-531.175051,0.000433,7]
[326977003,1715670636520,-1223.385485,0.000433,7]
[326977004,1715670636530,-1223.385485,0.000433,7]
[326977005,1715670636539,-1201.959778,0.000433,7]
[326977006,1715670636548,-1201.959778,0.000433,7]
[326977007,1715670636557,-150.0,0.00043375,2]
[326977008,1715670636567,-370.01612917,0.00043399,3]
[326977009,1715670636576,-1573.55459932,0.000434,15]
[326977010,1715670636585,-1573.71175048,0.000434,15]
[326977011,1715670636594,-150.80395486,0.00043466,2]
[326977012,1715670636604,-11871.14983234,0.000435,15]
[326977013,1715670636613,-30000.0,0.000435,120]
[326977014,1715670636622,-151.0,0.000435,7]
[326977015,1715670636631,-151.0,0.000435,7]
[326977016,1715670636641,-902.281355,0.000435,7]
[326977017,1715670636650,-902.281355,0.000435,7]
[326977018,1715670636659,-151.0,0.000435,7]
[326977019,1715670636668,-181.55166,0.000435,7]
[326977020,1715670636678,-181.55166,0.000435,7]
[326977021,1715670636687,-151.0,0.000435,7]
[326977022,1715670636696,-227.355618,0.000435,7]
[326977023,1715670636705,-227.355618,0.000435,7]
[326977024,1715670636714,-151.0,0.000435,7]
[326977025,1715670636723,-151.0,0.000435,7]
[326977026,1715670636732,-351.04623,0.000435,7]
[326977027,1715670636742,-309.294934,0.000435,7]
[326977028,1715670636752,-351.04623,0.000435,7]
[326977029,1715670636761,-151.0,0.000435,7]
[326977030,1715670636770,-319.297825,0.000435,7]
[326977031,1715670636779,-319.297825,0.000435,7]
[326977032,1715670636789,-151.0,0.000435,7]
[326977033,1715670636799,-151.0,0.000435,7]
[326977034,1715670636808,-151.0,0.000435,7]
[326977035,1715670636817,-788.512884,0.000435,7]
[326977036,1715670636827,-2240.09255,0.000435,7]
[326977037,1715670636837,-1668.034838,0.000435,7]
[326977038,1715670636846,-788.512884,0.000435,7]
[326977039,1715670636856,-2240.09255,0.000435,7]
[326977040,1715670636866,-1668.034838,0.000435,7]
[326977041,1715670636875,-337.182548,0.000435,7]
[326977042,1715670636885,-337.182548,0.000435,7]
[326977043,1715670636895,-1868.77064,0.000435,7]
[326977044,1715670636905,-231.737692,0.000435,7]
[326977045,1715670636914,-1868.77064,0.000435,7]
[326977046,1715670636923,-244.001732,0.000435,7]
[326977047,1715670636933,-244.001732,0.000435,7]
[326977048,1715670636943,-531.175051,0.000435,7]
[326977049,1715670636953,-531.175051,0.000435,7]
[326977050,1715670636963,-1223.385485,0.000435,7]
[326977051,1715670636972,-1223.385485,0.000435,7]
[326977052,1715670636981,-1201.959778,0.000435,7]
[326977053,1715670636991,-1201.959778,0.000435,7]
[326977054,1715670637000,-151.0,0.000435,7]
[326977055,1715670637010,-151.0,0.000435,7]
[326977056,1715670637019,-151.0,0.000435,7]
[326977057,1715670637029,-151.0,0.000435,7]
[326977058,1715670637039,-178.9989,0.000435,7]
[326977059,1715670637048,-178.9989,0.000435,7]
[326977060,1715670637057,-178.9989,0.000435,7]
[326977061,1715670637067,-702.892299,0.000435,7]
[326977062,1715670637075,-178.9989,0.000435,7]
[326977063,1715670637086,-702.892299,0.000435,7]
[326977064,1715670637095,-702.892299,0.000435,7]
[326977065,1715670637104,-702.892299,0.000435,7]
[326977066,1715670637113,-150.0,0.00043744,2]
[326977067,1715670637122,-1106.9850932,0.00043762,7]
[326977068,1715670637131,-281.0,0.000438,19]
[326977069,1715670637141,-591.877,0.000438,2]
[326977070,1715670637150,-562.0,0.000438,19]
[326977071,1715670637159,-562.0,0.000438,19]
[326977072,1715670637168,-154.791093,0.00043827,7]
[326977073,1715670637178,-151.0,0.00043832,7]
[326977074,1715670637187,-151.0,0.00043832,7]
[326977075,1715670637197,-902.281355,0.00043832,7]
[326977076,1715670637207,-902.281355,0.00043832,7]
[326977077,1715670637220,-151.0,0.00043832,7]
[326977078,1715670637229,-181.55166,0.00043832,7]
[326977079,1715670637239,-181.55166,0.00043832,7]
[326977080,1715670637249,-151.0,0.00043832,7]
[326977081,1715670637258,-227.355618,0.00043832,7]
[326977082,1715670637267,-227.355618,0.00043832,7]
[326977083,1715670637277,-245.4984,0.00043832,7]
[326977084,1715670637288,-191.124618,0.00043832,7]
[326977085,1715670637298,-351.04623,0.00043832,7]
[326977086,1715670637307,-309.294934,0.00043832,7]
[326977087,1715670637316,-351.04623,0.00043832,7]
[326977088,1715670637325,-151.0,0.00043832,7]
[326977089,1715670637334,-319.297825,0.00043832,7]
[326977090,1715670637344,-319.297825,0.00043832,7]
[326977091,1715670637353,-151.0,0.00043832,7]